[Event "Late-Titled-Tuesday-Blitz-January-16-2024"]
[Site "Chess.com"]
[Date "2024.01.16"]
[Round "8"]
[White "Mr_November18"]
[Black "Walter_White_Poland"]
[Result "0-1"]
[WhiteElo "2061"]
[BlackElo "2338"]
[TimeControl "180+1"]
[EndTime "15:28:59 PST"]
[Termination "Walter_White_Poland won by checkmate"]

1. e4 {[%clk 0:02:59.3]} 1... e6 {[%clk 0:02:59.5]} 2. d4 {[%clk 0:02:59]} 2...
d5 {[%clk 0:02:59.4]} 3. Nc3 {[%clk 0:02:58.9]} 3... Nf6 {[%clk 0:02:58.6]} 4.
e5 {[%clk 0:02:58.7]} 4... Nfd7 {[%clk 0:02:58.6]} 5. f4 {[%clk 0:02:58.8]} 5...
c5 {[%clk 0:02:58.6]} 6. Nf3 {[%clk 0:02:58.9]} 6... Nc6 {[%clk 0:02:58.3]} 7.
Ne2 {[%clk 0:02:58.8]} 7... cxd4 {[%clk 0:02:40.6]} 8. Nexd4 {[%clk 0:02:58.2]}
8... Nc5 {[%clk 0:02:39]} 9. Bd3 {[%clk 0:02:52.8]} 9... Nxd3+ {[%clk
0:02:27.7]} 10. Qxd3 {[%clk 0:02:52.4]} 10... Bc5 {[%clk 0:02:27.5]} 11. c3
{[%clk 0:02:51.7]} 11... Nxd4 {[%clk 0:02:14.4]} 12. cxd4 {[%clk 0:02:50.2]}
12... Bb6 {[%clk 0:02:10.7]} 13. O-O {[%clk 0:02:47.7]} 13... g6 {[%clk
0:02:05.2]} 14. Be3 {[%clk 0:02:36]} 14... h5 {[%clk 0:01:58.8]} 15. Rac1 {[%clk
0:02:31.4]} 15... Bd7 {[%clk 0:01:58.6]} 16. Ng5 {[%clk 0:02:11.7]} 16... Rc8
{[%clk 0:01:48.7]} 17. b3 {[%clk 0:01:54.2]} 17... O-O {[%clk 0:01:36.5]} 18.
Kh1 {[%clk 0:01:38]} 18... Qe7 {[%clk 0:01:36.3]} 19. Rg1 {[%clk 0:01:30.6]}
19... Rxc1 {[%clk 0:01:33.9]} 20. Bxc1 {[%clk 0:01:28.8]} 20... Qb4 {[%clk
0:01:29.2]} 21. Be3 {[%clk 0:01:27.1]} 21... Rc8 {[%clk 0:01:25.3]} 22. g4
{[%clk 0:01:19.2]} 22... Rc3 {[%clk 0:01:23.4]} 23. Qb1 {[%clk 0:01:17.4]} 23...
Rxe3 {[%clk 0:00:34.5]} 24. gxh5 {[%clk 0:01:17.2]} 24... Be8 {[%clk 0:00:16.9]}
25. hxg6 {[%clk 0:01:13.3]} 25... fxg6 {[%clk 0:00:17.5]} 26. Nxe6 {[%clk
0:01:09.6]} 26... Re4 {[%clk 0:00:13]} 27. Ng5 {[%clk 0:01:04.8]} 27... Qxd4
{[%clk 0:00:12.3]} 28. Nxe4 {[%clk 0:01:01.2]} 28... dxe4 {[%clk 0:00:11.5]} 29.
Rd1 {[%clk 0:00:58]} 29... Qf2 {[%clk 0:00:08.1]} 30. Rf1 {[%clk 0:00:53.4]}
30... Qe3 {[%clk 0:00:06.9]} 31. b4 {[%clk 0:00:49.9]} 31... Bc6 {[%clk
0:00:06.7]} 32. Qb3+ {[%clk 0:00:49.1]} 32... Kg7 {[%clk 0:00:04.9]} 33. Qe6
{[%clk 0:00:34.5]} 33... Qd4 {[%clk 0:00:02.9]} 34. Qf6+ {[%clk 0:00:34]} 34...
Kg8 {[%clk 0:00:03]} 35. Qxg6+ {[%clk 0:00:32.1]} 35... Kf8 {[%clk 0:00:03.6]}
36. Qf6+ {[%clk 0:00:32.1]} 36... Ke8 {[%clk 0:00:03.6]} 37. Qh8+ {[%clk
0:00:28.3]} 37... Ke7 {[%clk 0:00:03.7]} 38. Qg7+ {[%clk 0:00:27.7]} 38... Kd8
{[%clk 0:00:03.4]} 39. Qg4 {[%clk 0:00:22.9]} 39... e3+ {[%clk 0:00:03]} 40. Rf3
{[%clk 0:00:22.8]} 40... Bxf3+ {[%clk 0:00:01.9]} 41. Qxf3 {[%clk 0:00:21.9]}
41... e2 {[%clk 0:00:02.6]} 42. Qd3 {[%clk 0:00:19.1]} 42... Qxd3 {[%clk
0:00:02.2]} 43. Kg2 {[%clk 0:00:19.1]} 43... e1=Q {[%clk 0:00:03.1]} 44. h3
{[%clk 0:00:19.2]} 44... Qdd2+ {[%clk 0:00:04]} 45. Kf3 {[%clk 0:00:18.4]} 45...
Qee3+ {[%clk 0:00:04.9]} 46. Kg4 {[%clk 0:00:17.3]} 46... Qxf4+ {[%clk
0:00:05.8]} 47. Kh5 {[%clk 0:00:16.3]} 47... Qg5# {[%clk 0:00:06.7]} 0-1

[Event "Late-Titled-Tuesday-Blitz-January-16-2024"]
[Site "Chess.com"]
[Date "2024.01.16"]
[Round "8"]
[White "Gryffindorac8"]
[Black "DenizG123"]
[Result "1-0"]
[WhiteElo "2391"]
[BlackElo "2123"]
[TimeControl "180+1"]
[EndTime "15:29:00 PST"]
[Termination "Gryffindorac8 won on time"]

1. d4 {[%clk 0:03:00.9]} 1... Nf6 {[%clk 0:02:59.8]} 2. c4 {[%clk 0:03:01.3]}
2... g6 {[%clk 0:03:00.1]} 3. Nc3 {[%clk 0:03:00.8]} 3... d5 {[%clk 0:03:00.5]}
4. cxd5 {[%clk 0:03:00.6]} 4... Nxd5 {[%clk 0:03:01.4]} 5. e4 {[%clk 0:03:01.1]}
5... Nxc3 {[%clk 0:03:01.7]} 6. bxc3 {[%clk 0:03:02]} 6... Bg7 {[%clk
0:03:02.2]} 7. Bc4 {[%clk 0:03:02.2]} 7... c5 {[%clk 0:03:02.9]} 8. Ne2 {[%clk
0:03:02.2]} 8... Nc6 {[%clk 0:03:02.1]} 9. Be3 {[%clk 0:03:01.9]} 9... O-O
{[%clk 0:02:59.9]} 10. O-O {[%clk 0:03:01.4]} 10... Bg4 {[%clk 0:02:59.9]} 11.
f3 {[%clk 0:03:01]} 11... cxd4 {[%clk 0:02:57.4]} 12. cxd4 {[%clk 0:03:00.6]}
12... Na5 {[%clk 0:02:57.6]} 13. Bd3 {[%clk 0:03:00.5]} 13... Be6 {[%clk
0:02:55.6]} 14. d5 {[%clk 0:03:00.4]} 14... Bxa1 {[%clk 0:02:55.5]} 15. Qxa1
{[%clk 0:03:01.2]} 15... f6 {[%clk 0:02:56.2]} 16. Rb1 {[%clk 0:03:00.1]} 16...
Bf7 {[%clk 0:02:39.2]} 17. Bh6 {[%clk 0:02:58]} 17... Re8 {[%clk 0:02:36.4]} 18.
Bb5 {[%clk 0:02:57.3]} 18... Qb6+ {[%clk 0:02:25.4]} 19. Kh1 {[%clk 0:02:43.3]}
19... Red8 {[%clk 0:02:20.4]} 20. Be8 {[%clk 0:02:02]} 20... Qf2 {[%clk
0:02:09.1]} 21. Bxf7+ {[%clk 0:01:59.2]} 21... Kxf7 {[%clk 0:02:10]} 22. Nd4
{[%clk 0:01:54.7]} 22... Rdc8 {[%clk 0:01:56.5]} 23. Ne6 {[%clk 0:01:47.7]}
23... Rc2 {[%clk 0:01:51.7]} 24. Rg1 {[%clk 0:01:46.9]} 24... Rg8 {[%clk
0:01:20.5]} 25. Bf4 {[%clk 0:01:40.8]} 25... g5 {[%clk 0:01:02.1]} 26. Bg3
{[%clk 0:01:37.6]} 26... Qd2 {[%clk 0:00:58.1]} 27. a4 {[%clk 0:01:20.9]} 27...
Nc4 {[%clk 0:00:40.8]} 28. Be1 {[%clk 0:01:03.1]} 28... Qc1 {[%clk 0:00:34.8]}
29. Qd4 {[%clk 0:00:55.3]} 29... Qb2 {[%clk 0:00:27.9]} 30. Qd3 {[%clk
0:00:31.4]} 30... Ne5 {[%clk 0:00:24.2]} 31. Qe3 {[%clk 0:00:28.8]} 31... Ng6
{[%clk 0:00:20.2]} 32. Bg3 {[%clk 0:00:24.8]} 32... Nf4 {[%clk 0:00:17.1]} 33.
Nxf4 {[%clk 0:00:20.6]} 33... gxf4 {[%clk 0:00:17.6]} 34. Qxf4 {[%clk
0:00:21.2]} 34... Rgc8 {[%clk 0:00:13.2]} 35. Qf5 {[%clk 0:00:21.3]} 35... Rc1
{[%clk 0:00:13.1]} 36. Qxh7+ {[%clk 0:00:19.5]} 36... Ke8 {[%clk 0:00:13]} 37.
h3 {[%clk 0:00:17.4]} 37... Rxg1+ {[%clk 0:00:12.7]} 38. Kxg1 {[%clk 0:00:17.6]}
38... Rc1+ {[%clk 0:00:12.7]} 39. Kh2 {[%clk 0:00:17.6]} 39... Rc2 {[%clk
0:00:13.4]} 40. Qg8+ {[%clk 0:00:16]} 40... Kd7 {[%clk 0:00:13.9]} 41. Qe6+
{[%clk 0:00:14.2]} 41... Kd8 {[%clk 0:00:12.9]} 42. Qg8+ {[%clk 0:00:13.7]}
42... Kd7 {[%clk 0:00:13.3]} 43. Bf4 {[%clk 0:00:11]} 43... Qb4 {[%clk
0:00:05.7]} 44. h4 {[%clk 0:00:10.6]} 44... Qe1 {[%clk 0:00:04.9]} 45. Qg4+
{[%clk 0:00:09.1]} 45... Kd8 {[%clk 0:00:04.6]} 46. h5 {[%clk 0:00:09.5]} 1-0

[Event "Late-Titled-Tuesday-Blitz-January-16-2024"]
[Site "Chess.com"]
[Date "2024.01.16"]
[Round "8"]
[White "vladislavkovalev"]
[Black "SCIM"]
[Result "1/2-1/2"]
[WhiteElo "2838"]
[BlackElo "2596"]
[TimeControl "180+1"]
[EndTime "15:29:06 PST"]
[Termination "Game drawn by repetition"]

1. e4 {[%clk 0:02:58]} 1... e5 {[%clk 0:02:57.2]} 2. Nf3 {[%clk 0:02:58.4]} 2...
Nc6 {[%clk 0:02:57.2]} 3. Bb5 {[%clk 0:02:59]} 3... a6 {[%clk 0:02:49.1]} 4. Ba4
{[%clk 0:02:59.3]} 4... d6 {[%clk 0:02:49.4]} 5. O-O {[%clk 0:02:57.8]} 5... Bd7
{[%clk 0:02:46.8]} 6. d4 {[%clk 0:02:57.7]} 6... Nf6 {[%clk 0:02:37.6]} 7. Re1
{[%clk 0:02:47]} 7... Be7 {[%clk 0:02:17.7]} 8. d5 {[%clk 0:02:25.3]} 8... Nb8
{[%clk 0:02:16]} 9. c4 {[%clk 0:02:25.3]} 9... O-O {[%clk 0:02:13.4]} 10. Bxd7
{[%clk 0:02:23.2]} 10... Nbxd7 {[%clk 0:02:13.9]} 11. Nc3 {[%clk 0:02:23.9]}
11... c6 {[%clk 0:02:11.1]} 12. a4 {[%clk 0:02:16.5]} 12... Rc8 {[%clk
0:02:04.4]} 13. h3 {[%clk 0:02:06.6]} 13... Re8 {[%clk 0:01:51.9]} 14. Be3
{[%clk 0:02:05.4]} 14... c5 {[%clk 0:01:46.2]} 15. a5 {[%clk 0:02:04.9]} 15...
g6 {[%clk 0:01:42.3]} 16. Qa4 {[%clk 0:02:03.7]} 16... Nh5 {[%clk 0:01:38.9]}
17. Reb1 {[%clk 0:01:58.1]} 17... f5 {[%clk 0:01:29.1]} 18. b4 {[%clk
0:01:44.8]} 18... f4 {[%clk 0:01:27.2]} 19. Bc1 {[%clk 0:01:43.9]} 19... g5
{[%clk 0:01:21.1]} 20. Ba3 {[%clk 0:01:35.6]} 20... cxb4 {[%clk 0:01:17.2]} 21.
Rxb4 {[%clk 0:01:30.8]} 21... Nc5 {[%clk 0:01:15.2]} 22. Qd1 {[%clk 0:01:31.3]}
22... Ng7 {[%clk 0:01:05.8]} 23. Rb6 {[%clk 0:01:31.4]} 23... Qd7 {[%clk
0:00:58.6]} 24. Rab1 {[%clk 0:01:27.9]} 24... g4 {[%clk 0:00:58.2]} 25. hxg4
{[%clk 0:01:27.5]} 25... Qxg4 {[%clk 0:00:59.1]} 26. Ne1 {[%clk 0:01:11.6]}
26... Qxd1 {[%clk 0:00:54.3]} 27. Rxd1 {[%clk 0:01:10.8]} 27... Rc7 {[%clk
0:00:37.2]} 28. Rdb1 {[%clk 0:01:06.7]} 28... Rec8 {[%clk 0:00:31.3]} 29. Kf1
{[%clk 0:00:43.1]} 29... Ne8 {[%clk 0:00:28.1]} 30. Ke2 {[%clk 0:00:27.3]} 30...
Nf6 {[%clk 0:00:26.5]} 31. f3 {[%clk 0:00:27.8]} 31... Nfd7 {[%clk 0:00:25.8]}
32. R6b2 {[%clk 0:00:25.8]} 32... Kf7 {[%clk 0:00:21.7]} 33. Rb4 {[%clk
0:00:15.7]} 33... Rg8 {[%clk 0:00:20.6]} 34. Kf1 {[%clk 0:00:11.8]} 34... Bh4
{[%clk 0:00:20.3]} 35. R4b2 {[%clk 0:00:03.2]} 35... Bxe1 {[%clk 0:00:18.8]} 36.
Rxe1 {[%clk 0:00:03.2]} 36... Nd3 {[%clk 0:00:18.7]} 37. Bxd6 {[%clk 0:00:03.2]}
37... Rxc4 {[%clk 0:00:16.2]} 38. Rxb7 {[%clk 0:00:03.9]} 38... Rxc3 {[%clk
0:00:16]} 39. Rxd7+ {[%clk 0:00:04.1]} 39... Kf6 {[%clk 0:00:15.4]} 40. Rb1
{[%clk 0:00:02.8]} 40... Rc2 {[%clk 0:00:14.8]} 41. Rb6 {[%clk 0:00:02]} 41...
Rf2+ {[%clk 0:00:14.7]} 42. Kg1 {[%clk 0:00:02.5]} 42... Rgxg2+ {[%clk
0:00:14.9]} 43. Kh1 {[%clk 0:00:03.1]} 43... Rh2+ {[%clk 0:00:14.8]} 44. Kg1
{[%clk 0:00:03.9]} 44... Rfg2+ {[%clk 0:00:14.3]} 45. Kf1 {[%clk 0:00:04.6]}
45... Rf2+ {[%clk 0:00:12.6]} 46. Kg1 {[%clk 0:00:05.2]} 46... Rhg2+ {[%clk
0:00:05.8]} 47. Kh1 {[%clk 0:00:05.7]} 47... Rh2+ {[%clk 0:00:05.1]} 48. Kg1
{[%clk 0:00:06.4]} 1/2-1/2

[Event "Late-Titled-Tuesday-Blitz-January-16-2024"]
[Site "Chess.com"]
[Date "2024.01.16"]
[Round "8"]
[White "GAusal"]
[Black "agvega14"]
[Result "1-0"]
[WhiteElo "2261"]
[BlackElo "2132"]
[TimeControl "180+1"]
[EndTime "15:29:07 PST"]
[Termination "GAusal won on time"]

1. d4 {[%clk 0:03:00.9]} 1... d5 {[%clk 0:02:58.2]} 2. Nf3 {[%clk 0:02:54.5]}
2... Nf6 {[%clk 0:02:57.9]} 3. Bf4 {[%clk 0:02:48.4]} 3... c5 {[%clk 0:02:57.2]}
4. e3 {[%clk 0:02:47.5]} 4... Nc6 {[%clk 0:02:57.9]} 5. c3 {[%clk 0:02:43.2]}
5... Qb6 {[%clk 0:02:57.8]} 6. Qc2 {[%clk 0:02:40]} 6... g6 {[%clk 0:02:49.7]}
7. h3 {[%clk 0:02:33.5]} 7... Bf5 {[%clk 0:02:39.8]} 8. dxc5 {[%clk 0:02:32.8]}
8... Qxc5 {[%clk 0:02:33.1]} 9. Qb3 {[%clk 0:02:28.3]} 9... Na5 {[%clk
0:02:06.2]} 10. Qa4+ {[%clk 0:02:27.3]} 10... Bd7 {[%clk 0:02:05.4]} 11. Qd4
{[%clk 0:02:23.2]} 11... Qxd4 {[%clk 0:02:00.8]} 12. exd4 {[%clk 0:02:22.7]}
12... Nc6 {[%clk 0:01:52.5]} 13. Bd3 {[%clk 0:02:18.7]} 13... Bg7 {[%clk
0:01:52.2]} 14. O-O {[%clk 0:02:12.4]} 14... O-O {[%clk 0:01:52]} 15. Nbd2
{[%clk 0:02:07.2]} 15... Rfc8 {[%clk 0:01:49.5]} 16. Rfe1 {[%clk 0:02:06.2]}
16... a6 {[%clk 0:01:38.3]} 17. Nb3 {[%clk 0:02:02.4]} 17... b6 {[%clk
0:01:15.9]} 18. Ne5 {[%clk 0:01:58.3]} 18... e6 {[%clk 0:01:06.5]} 19. g4 {[%clk
0:01:52.2]} 19... Be8 {[%clk 0:00:59.9]} 20. a4 {[%clk 0:01:48.1]} 20... Nxe5
{[%clk 0:00:57.9]} 21. Bxe5 {[%clk 0:01:44]} 21... a5 {[%clk 0:00:53.3]} 22. Nd2
{[%clk 0:01:39.3]} 22... Nd7 {[%clk 0:00:48.7]} 23. Bxg7 {[%clk 0:01:34.4]}
23... Kxg7 {[%clk 0:00:49.6]} 24. f4 {[%clk 0:01:30.4]} 24... h6 {[%clk
0:00:49.1]} 25. Nf3 {[%clk 0:01:27.1]} 25... Nf6 {[%clk 0:00:35.8]} 26. Ne5
{[%clk 0:01:23.4]} 26... Rc7 {[%clk 0:00:35.4]} 27. Kg2 {[%clk 0:01:16.4]} 27...
Rac8 {[%clk 0:00:34.8]} 28. Kf3 {[%clk 0:01:08.8]} 28... Bc6 {[%clk 0:00:31.4]}
29. f5 {[%clk 0:01:05.3]} 29... exf5 {[%clk 0:00:30.2]} 30. gxf5 {[%clk
0:01:04.9]} 30... g5 {[%clk 0:00:28.8]} 31. h4 {[%clk 0:01:01.6]} 31... Nh7
{[%clk 0:00:16.9]} 32. hxg5 {[%clk 0:00:55.2]} 32... Nxg5+ {[%clk 0:00:16.3]}
33. Kf4 {[%clk 0:00:51.3]} 33... Kf6 {[%clk 0:00:16]} 34. Ng4+ {[%clk
0:00:47.6]} 34... Kg7 {[%clk 0:00:15.7]} 35. f6+ {[%clk 0:00:44.6]} 35... Kf8
{[%clk 0:00:14.4]} 36. Nxh6 {[%clk 0:00:43.5]} 36... Ne6+ {[%clk 0:00:14.5]} 37.
Rxe6 {[%clk 0:00:37.7]} 37... fxe6 {[%clk 0:00:13.8]} 38. Rg1 {[%clk 0:00:34.6]}
38... Ke8 {[%clk 0:00:12.4]} 39. Ke5 {[%clk 0:00:34.1]} 39... Kd8 {[%clk
0:00:06.5]} 40. Rg8+ {[%clk 0:00:28]} 40... Kd7 {[%clk 0:00:04.7]} 41. Rg7+
{[%clk 0:00:20]} 41... Kd8 {[%clk 0:00:05.1]} 42. Nf7+ {[%clk 0:00:15.9]} 42...
Rxf7 {[%clk 0:00:03.1]} 43. Rxf7 {[%clk 0:00:15.7]} 43... Be8 {[%clk 0:00:04]}
44. Rf8 {[%clk 0:00:15.1]} 44... Rc7 {[%clk 0:00:03.1]} 45. Rg8 {[%clk
0:00:12.8]} 45... Kd7 {[%clk 0:00:01.5]} 46. Bg6 {[%clk 0:00:13.2]} 46... Bxg6
{[%clk 0:00:01.1]} 47. Rxg6 {[%clk 0:00:13.2]} 47... Ke8 {[%clk 0:00:01.2]} 48.
Rg7 {[%clk 0:00:13.9]} 1-0

[Event "Late-Titled-Tuesday-Blitz-January-16-2024"]
[Site "Chess.com"]
[Date "2024.01.16"]
[Round "8"]
[White "jinxy2009"]
[Black "stregachess"]
[Result "1-0"]
[WhiteElo "2236"]
[BlackElo "2063"]
[TimeControl "180+1"]
[EndTime "15:29:07 PST"]
[Termination "jinxy2009 won on time"]

1. e4 {[%clk 0:03:00.9]} 1... c5 {[%clk 0:02:59.6]} 2. Nf3 {[%clk 0:02:38.4]}
2... d6 {[%clk 0:02:59.5]} 3. d4 {[%clk 0:02:38.8]} 3... cxd4 {[%clk 0:02:59.6]}
4. Nxd4 {[%clk 0:02:39.7]} 4... Nf6 {[%clk 0:02:59.7]} 5. Nc3 {[%clk 0:02:40.1]}
5... g6 {[%clk 0:03:00]} 6. Be3 {[%clk 0:02:36]} 6... Bg7 {[%clk 0:02:59.9]} 7.
f3 {[%clk 0:02:36.1]} 7... O-O {[%clk 0:03:00.1]} 8. Bc4 {[%clk 0:02:35.9]} 8...
Nc6 {[%clk 0:02:59.9]} 9. Qd2 {[%clk 0:02:36.1]} 9... Nxd4 {[%clk 0:02:59.6]}
10. Bxd4 {[%clk 0:02:35.9]} 10... Be6 {[%clk 0:02:59.9]} 11. Bxe6 {[%clk
0:02:31.8]} 11... fxe6 {[%clk 0:03:00.8]} 12. O-O-O {[%clk 0:02:32.2]} 12... Qa5
{[%clk 0:03:00]} 13. Rhe1 {[%clk 0:02:32.2]} 13... e5 {[%clk 0:02:49.8]} 14. Bf2
{[%clk 0:02:17.5]} 14... Rac8 {[%clk 0:02:35.5]} 15. Kb1 {[%clk 0:02:15.8]}
15... a6 {[%clk 0:02:19.6]} 16. Nd5 {[%clk 0:01:58.4]} 16... Qxd2 {[%clk
0:02:18.9]} 17. Rxd2 {[%clk 0:01:59.3]} 17... Nxd5 {[%clk 0:02:08]} 18. exd5
{[%clk 0:01:46.7]} 18... b5 {[%clk 0:02:02.8]} 19. Re4 {[%clk 0:01:33.1]} 19...
Rc7 {[%clk 0:01:59.7]} 20. a4 {[%clk 0:01:16.3]} 20... Rb8 {[%clk 0:01:53.4]}
21. axb5 {[%clk 0:01:06.6]} 21... Rxb5 {[%clk 0:01:28.3]} 22. Ra4 {[%clk
0:00:53.5]} 22... a5 {[%clk 0:01:18.8]} 23. c4 {[%clk 0:00:42]} 23... Rb4 {[%clk
0:01:10.3]} 24. Rxb4 {[%clk 0:00:39.9]} 24... axb4 {[%clk 0:01:10.4]} 25. b3
{[%clk 0:00:40]} 25... Kf7 {[%clk 0:00:33.8]} 26. Ra2 {[%clk 0:00:34.2]} 26...
e6 {[%clk 0:00:34]} 27. dxe6+ {[%clk 0:00:23.2]} 27... Kxe6 {[%clk 0:00:34]} 28.
Ra6 {[%clk 0:00:24.1]} 28... e4 {[%clk 0:00:27.9]} 29. Bg3 {[%clk 0:00:18.4]}
29... exf3 {[%clk 0:00:19.9]} 30. gxf3 {[%clk 0:00:16.5]} 30... Kf5 {[%clk
0:00:18.7]} 31. Rxd6 {[%clk 0:00:16.1]} 31... Re7 {[%clk 0:00:16.2]} 32. Rd5+
{[%clk 0:00:15.8]} 32... Ke6 {[%clk 0:00:14.4]} 33. Rb5 {[%clk 0:00:15]} 33...
Bc3 {[%clk 0:00:13.4]} 34. Kc2 {[%clk 0:00:14.9]} 34... Kf7 {[%clk 0:00:12.4]}
35. Kd3 {[%clk 0:00:13.1]} 35... h5 {[%clk 0:00:08.3]} 36. c5 {[%clk 0:00:13.4]}
36... h4 {[%clk 0:00:08.5]} 37. Bd6 {[%clk 0:00:13]} 37... Re1 {[%clk 0:00:07]}
38. c6 {[%clk 0:00:12.6]} 38... Rd1+ {[%clk 0:00:07.3]} 39. Kc4 {[%clk
0:00:12.9]} 39... Rxd6 {[%clk 0:00:07.3]} 40. c7 {[%clk 0:00:11.5]} 40... Rc6+
{[%clk 0:00:07.4]} 41. Rc5 {[%clk 0:00:11.9]} 41... Rxc7 {[%clk 0:00:05.1]} 42.
Rxc7+ {[%clk 0:00:11.6]} 42... Ke6 {[%clk 0:00:05.8]} 43. Rh7 {[%clk 0:00:09.7]}
43... Be1 {[%clk 0:00:03.5]} 44. Kd3 {[%clk 0:00:09.1]} 44... Kf5 {[%clk
0:00:03.5]} 45. Ke3 {[%clk 0:00:09.3]} 45... g5 {[%clk 0:00:02.3]} 46. Rf7+
{[%clk 0:00:09.2]} 46... Kg6 {[%clk 0:00:02.4]} 47. Rb7 {[%clk 0:00:08.9]} 47...
Bc3 {[%clk 0:00:01.6]} 48. Ke4 {[%clk 0:00:06.8]} 1-0

[Event "Late-Titled-Tuesday-Blitz-January-16-2024"]
[Site "Chess.com"]
[Date "2024.01.16"]
[Round "8"]
[White "cristiancamilosoto"]
[Black "nindjaxx8"]
[Result "0-1"]
[WhiteElo "2394"]
[BlackElo "2558"]
[TimeControl "180+1"]
[EndTime "15:29:09 PST"]
[Termination "nindjaxx8 won on time"]

1. c4 {[%clk 0:02:57.4]} 1... e6 {[%clk 0:02:59.6]} 2. e3 {[%clk 0:02:53.6]}
2... d5 {[%clk 0:03:00.1]} 3. Nf3 {[%clk 0:02:53.7]} 3... Nf6 {[%clk 0:02:59.8]}
4. b3 {[%clk 0:02:52.8]} 4... Be7 {[%clk 0:02:59.2]} 5. Bb2 {[%clk 0:02:53]}
5... O-O {[%clk 0:02:58.5]} 6. Be2 {[%clk 0:02:53.4]} 6... b6 {[%clk 0:02:58.4]}
7. O-O {[%clk 0:02:54]} 7... Bb7 {[%clk 0:02:58.4]} 8. Nc3 {[%clk 0:02:52.9]}
8... dxc4 {[%clk 0:02:57.6]} 9. bxc4 {[%clk 0:02:52.3]} 9... c5 {[%clk
0:02:57.7]} 10. d4 {[%clk 0:02:52.6]} 10... Nbd7 {[%clk 0:02:57.2]} 11. d5
{[%clk 0:02:51]} 11... exd5 {[%clk 0:02:56.2]} 12. cxd5 {[%clk 0:02:51.9]} 12...
Bd6 {[%clk 0:02:55.9]} 13. Nb5 {[%clk 0:02:50.3]} 13... Nb8 {[%clk 0:02:48.2]}
14. Nxd6 {[%clk 0:02:49.2]} 14... Qxd6 {[%clk 0:02:48.1]} 15. Be5 {[%clk
0:02:49.1]} 15... Qxd5 {[%clk 0:02:44.8]} 16. Bxf6 {[%clk 0:02:47.5]} 16... gxf6
{[%clk 0:02:31.4]} 17. Qc2 {[%clk 0:02:44.5]} 17... Nc6 {[%clk 0:02:22]} 18.
Rad1 {[%clk 0:02:40.1]} 18... Nb4 {[%clk 0:02:14.1]} 19. Rxd5 {[%clk 0:02:30.8]}
19... Nxc2 {[%clk 0:02:12.9]} 20. Rd6 {[%clk 0:02:28]} 20... Rfd8 {[%clk
0:01:46.3]} 21. Rxf6 {[%clk 0:02:25.2]} 21... Bd5 {[%clk 0:01:44.7]} 22. Rc1
{[%clk 0:02:08.7]} 22... Nb4 {[%clk 0:01:17]} 23. a3 {[%clk 0:02:07.6]} 23...
Nc6 {[%clk 0:01:15.8]} 24. Bc4 {[%clk 0:01:36]} 24... Na5 {[%clk 0:00:54.9]} 25.
Bxd5 {[%clk 0:01:33.1]} 25... Rxd5 {[%clk 0:00:55.8]} 26. g3 {[%clk 0:01:32]}
26... Rc8 {[%clk 0:00:49.3]} 27. Kg2 {[%clk 0:01:31.2]} 27... c4 {[%clk
0:00:41.2]} 28. Rc3 {[%clk 0:01:25.6]} 28... Rd3 {[%clk 0:00:17.9]} 29. Rxd3
{[%clk 0:01:21.4]} 29... cxd3 {[%clk 0:00:18.8]} 30. Rd6 {[%clk 0:01:21.5]}
30... Rc3 {[%clk 0:00:18]} 31. Ne5 {[%clk 0:01:13.1]} 31... Rxa3 {[%clk
0:00:17.6]} 32. Rd8+ {[%clk 0:01:08.6]} 32... Kg7 {[%clk 0:00:17.3]} 33. Rd7
{[%clk 0:01:08.8]} 33... Kf6 {[%clk 0:00:16]} 34. f4 {[%clk 0:01:09.1]} 34...
Ke6 {[%clk 0:00:11.7]} 35. Rd4 {[%clk 0:00:42.2]} 35... Ra2+ {[%clk 0:00:11.4]}
36. Kf3 {[%clk 0:00:42.4]} 36... d2 {[%clk 0:00:11.8]} 37. g4 {[%clk 0:00:15.2]}
37... Nb3 {[%clk 0:00:09]} 38. Rd8 {[%clk 0:00:12.7]} 38... Ra1 {[%clk
0:00:06.2]} 39. Re8+ {[%clk 0:00:09.2]} 39... Kf6 {[%clk 0:00:02.9]} 40. g5+
{[%clk 0:00:08.7]} 40... Kg7 {[%clk 0:00:03.2]} 41. Rd8 {[%clk 0:00:04.3]} 41...
d1=Q+ {[%clk 0:00:03.2]} 42. Rxd1 {[%clk 0:00:05.1]} 42... Rxd1 {[%clk
0:00:03.9]} 43. f5 {[%clk 0:00:05.3]} 43... a5 {[%clk 0:00:03.5]} 44. f6+ {[%clk
0:00:04.8]} 44... Kg8 {[%clk 0:00:03.9]} 45. Nc4 {[%clk 0:00:02.2]} 45... a4
{[%clk 0:00:03.9]} 46. Ke2 {[%clk 0:00:01.4]} 46... Rd8 {[%clk 0:00:03.9]} 0-1